{"text_format":"1","workbook":"xlsx","n_sheets":5,"sheets":["Tool NL - FR","Tekst NL","Tekst FR","Referenties - Références","Installatie - Installation"],"not_rendered":{"charts":0,"images":32,"macros":1,"external_links":0,"defined_names":11,"comments":2,"pivot_tables":0},"unopened":[],"bounds":{"document_bytes":16777216,"sheet_cells":100000,"rows_first":2000,"rows_last":500,"rows_between":2000,"halvings":0,"cell_chars":16384,"cell_head_chars":4096},"cells_cut":0,"cells_raw":0,"read":"whole","date_system":"1900"}

{"sheet":"Tool NL - FR","index":0,"n_rows":129,"n_cols":50,"rows_kept":129,"cut":false,"hidden":false,"merged":[[25,2,25,3],[26,2,26,3],[42,2,42,3],[18,2,18,3],[17,2,17,3],[20,2,20,3],[21,2,21,3],[22,2,22,3],[23,2,23,3],[24,2,24,3],[2,21,3,30],[107,1,109,6],[2,9,2,10],[10,5,10,8],[12,5,12,8],[13,5,13,8],[65,4,65,6],[79,4,79,6],[103,4,103,6],[97,3,97,6],[76,8,78,13],[11,5,11,8],[13,9,13,13],[12,9,12,13],[11,9,11,13],[10,9,10,13]]}
[]
[null,null,null,null,null,{"$f":"IF($J$3=\"Nederlands\",'Tekst NL'!F2,'Tekst FR'!F2)","v":"In te vullen velden"},{"$f":"IF($J$3=\"Nederlands\",'Tekst NL'!G2,'Tekst FR'!G2)","v":"   Volgens BE wetgeving (residentieel)"},null,null,{"$f":"IF($J$3=\"Nederlands\",'Tekst NL'!J2,'Tekst FR'!J2)","v":"Versie:"},"2024-01-08"]
[null,null,null,null,null,null,null,null,null,"Nederlands",null,null,null,null,null,"Nederlands",null,null,null,null,null,"WIJZIGINGEN? "]
[null,null,null,null,null,{"$f":"IF($J$3=\"Nederlands\",'Tekst NL'!F4,'Tekst FR'!F4)","v":"Laatste versie file & tutorial: "},{"$f":"IF($J$3=\"Nederlands\",'Tekst NL'!G4,'Tekst FR'!G4)","v":"https://www.renson.eu/nl-be/voor-professionals/easyflex-tool"},null,null,null,null,null,null,null,null,"Français"]
[null,null,null,null,null,null,null,null,null,null,null,null,null,null,null,null,null,null,null,null,null,"Berekening in deze tab. Taal: in tab NL en FR (verwijzing)"]
[]
[]
[]
[null,"Ingave velden"]
[null,null,null,null,"( x )",null,null,null,null,null,null,"x"]
[null,null,null,{"$f":"IF($J$3=\"Nederlands\",'Tekst NL'!D11,'Tekst FR'!D11)","v":"Keuze unit / reductiefactor (EPB)"},null,{"$f":"IF($J$3=\"Nederlands\",'Tekst NL'!F11,'Tekst FR'!F11)","v":"Healthbox 3.0 (RF 0,9)"},{"$f":"IF($J$3=\"Nederlands\",'Tekst NL'!G11,'Tekst FR'!G11)","v":0},{"$f":"IF($J$3=\"Nederlands\",'Tekst NL'!H11,'Tekst FR'!H11)","v":0},{"$f":"IF($J$3=\"Nederlands\",'Tekst NL'!I11,'Tekst FR'!I11)","v":0},{"$f":"IF($J$3=\"Nederlands\",'Tekst NL'!J11,'Tekst FR'!J11)","v":"mechanische afvoer in alle vochtige ruimtes. Lokale regeling en detectie van alle mechanische afvoerdebieten"},null,null,null,null,null,null,null,null,null,null,null,null,null,null,null,null,null,null,null,null,null,null,null,null,null,null,null,null,null,null,null,null,null,null,null,null,null,null,null,"Zet een \"x\" bij de keuze van de unit"]
[null,null,null,null,null,{"$f":"IF($J$3=\"Nederlands\",'Tekst NL'!F12,'Tekst FR'!F12)","v":"Healthbox 3.0 CO2 (0,81)"},{"$f":"IF($J$3=\"Nederlands\",'Tekst NL'!G12,'Tekst FR'!G12)","v":0},{"$f":"IF($J$3=\"Nederlands\",'Tekst NL'!H12,'Tekst FR'!H12)","v":0},{"$f":"IF($J$3=\"Nederlands\",'Tekst NL'!I12,'Tekst FR'!I12)","v":0},{"$f":"IF($J$3=\"Nederlands\",'Tekst NL'!J12,'Tekst FR'!J12)","v":"mechanische afvoer in alle vochtige ruimtes. Lokale regeling en detectie van alle mechanische afvoerdebieten + centrale regeling en detectie op basis van CO2"}]
[null,null,null,null,null,{"$f":"IF($J$3=\"Nederlands\",'Tekst NL'!F13,'Tekst FR'!F13)","v":"Healthbox 3.0 Smartzone (RF 0,61)"},{"$f":"IF($J$3=\"Nederlands\",'Tekst NL'!G13,'Tekst FR'!G13)","v":0},{"$f":"IF($J$3=\"Nederlands\",'Tekst NL'!H13,'Tekst FR'!H13)","v":0},{"$f":"IF($J$3=\"Nederlands\",'Tekst NL'!I13,'Tekst FR'!I13)","v":0},{"$f":"IF($J$3=\"Nederlands\",'Tekst NL'!J13,'Tekst FR'!J13)","v":"mechanische afvoer in alle vochtige ruimtes en slaapkamers. Lokale regeling en detectie in alle vochtige ruimtes, centrale regeling en detectie in 2 of meer slaapkamers"}]
[null,null,null,null,null,{"$f":"IF($J$3=\"Nederlands\",'Tekst NL'!F14,'Tekst FR'!F14)","v":"Healthbox 3.0 Smartzone (RF 0,5 / 0,43)"},{"$f":"IF($J$3=\"Nederlands\",'Tekst NL'!G14,'Tekst FR'!G14)","v":0},{"$f":"IF($J$3=\"Nederlands\",'Tekst NL'!H14,'Tekst FR'!H14)","v":0},{"$f":"IF($J$3=\"Nederlands\",'Tekst NL'!I14,'Tekst FR'!I14)","v":0},{"$f":"IF($J$3=\"Nederlands\",'Tekst NL'!J14,'Tekst FR'!J14)","v":"0,43: mechanische afvoer in alle vochtige ruimtes en droge ruimtes. Bij open keuken, volstaat de CO2 gestuurde afvoer in de keuken en hoeft er geen afzonderlijke afvoer in de leefruimte bij geplaatst te worden! Lokale regeling en detectie van alle mechanische afvoerdebieten. 0,50 : mechanische afvoer in alle vochtige ruimtes en slaapkamers. Lokale regeling en\ndetectie van alle mechanische afvoerdebieten"}]
[]
[]
[]
[null,null,{"$f":"IF($J$3=\"Nederlands\",'Tekst NL'!C18,'Tekst FR'!C18)","v":"Afvoer"}]
[null,{"$f":"IF($J$3=\"Nederlands\",'Tekst NL'!B19,'Tekst FR'!B19)","v":"Aantal"},{"$f":"IF($J$3=\"Nederlands\",'Tekst NL'!C19,'Tekst FR'!C19)","v":"Ruimte(s) waar ventilatie moet voorzien worden:"},null,null,null,null,null,null,{"$f":"IF($J$3=\"Nederlands\",'Tekst NL'!J19,'Tekst FR'!J19)","v":"Debiet m³/h (per ruimte)"},null,null,null,null,null,null,null,null,null,null,null,"ROOSTERBASISSEN",null,null,null,null,null,null,null,null,null,"aantal ventielen","Tellers",null,null,null,null,null,null,null,"Regels"]
[null,null,null,null,null,null,null,null,null,"m³/h",null,null,null,null,null,null,null,null,null,null,null,null,null,null,null,null,null,null,null,null,null,null,"teller ruimtes",null,null,null,null,null,null,null,"toilet diam 80 , alle andere ruimtes diam 125",null,null,null,null,null,null,null,null,"1. Aanduiding type ruimte met \"x\" "]
[null,null,{"$f":"IF($J$3=\"Nederlands\",'Tekst NL'!C21,'Tekst FR'!C21)","v":"Toilet"},null,null,null,null,null,null,{"$f":"IF(B21=\"\",0,K21)","v":0},25,25,null,null,null,{"$f":"B21*J21","v":0},null,null,null,null,null,null,null,null,null,null,null,null,null,null,null,{"$f":"AG21","v":0},{"$f":"IF(B21=\"x\",1,0)","v":0},null,null,null,null,null,{"$f":"IF(B26>4,\"1\",\"0\")","v":"0"}]
[null,null,{"$f":"IF($J$3=\"Nederlands\",'Tekst NL'!C22,'Tekst FR'!C22)","v":"Keuken"},null,null,null,null,null,null,{"$f":"IF(B22=\"\",0,K22)","v":0},75,76,null,null,null,{"$f":"B22*J22","v":0},null,null,null,null,null,null,null,null,null,null,null,null,null,null,null,{"$f":"AG22","v":0},{"$f":"IF(B22=\"x\",1,0)","v":0},null,null,"toiletten",{"$f":"B21","v":0}]
[null,null,{"$f":"IF($J$3=\"Nederlands\",'Tekst NL'!C23,'Tekst FR'!C23)","v":"Wasplaats"},null,null,null,null,null,null,0,50,51,null,null,null,0,null,null,null,null,null,null,null,null,null,null,null,null,null,null,null,{"$f":"AG23","v":0},0,null,null,"keuken",{"$f":"B22","v":0}]
[null,null,{"$f":"IF($J$3=\"Nederlands\",'Tekst NL'!C24,'Tekst FR'!C24)","v":"Badkamer zonder toilet"},null,null,null,null,null,null,0,50,51,null,null,null,{"$f":"B24*J24","v":0},null,null,null,null,null,null,null,null,null,null,null,null,null,null,null,0,0,null,null,"wasplaats / BK z toilet",{"$f":"B23+B24","v":0}]
[null,null,{"$f":"IF($J$3=\"Nederlands\",'Tekst NL'!C25,'Tekst FR'!C25)","v":"Badkamer met toilet"},null,null,null,null,null,null,0,50,51,null,null,null,{"$f":"B25*J25","v":0},null,null,null,null,null,null,null,null,null,null,null,null,null,null,null,0,0,null,null,"Badkamer met toilet",{"$f":"B25","v":0}]
[null,null,{"$f":"IF($J$3=\"Nederlands\",'Tekst NL'!C26,'Tekst FR'!C26)","v":"Slaapkamer"},null,null,null,null,null,null,0,30,31,null,null,null,0,null,null,null,null,null,null,null,null,null,null,null,null,null,null,null,0,0]
[null,null,{"$f":"IF($J$3=\"Nederlands\",'Tekst NL'!C27,'Tekst FR'!C27)","v":"Andere droge ruimtes (bv. bureau)"},null,null,null,null,null,null,{"$f":"IF(B27=\"\",0,K27)","v":0},30,41,null,null,null,0,null,null,null,null,null,null,null,null,null,null,null,null,null,null,null,0,0,null,null,"slaapkamers",{"$f":"B26+B27","v":0}]
[null,null,null,null,null,null,null,null,null,null,null,null,null,null,null,null,null,null,null,null,null,null,null,null,null,null,null,null,null,null,null,0,0]
[null,{"$f":"SUM(B21:B27)","v":0},null,null,null,null,null,null,null,null,null,null,null,null,null,null,null,null,null,null,null,null,null,null,null,null,null,null,null,null,null,0,0]
[null,null,null,null,null,null,null,null,null,null,null,null,null,null,null,null,null,null,null,null,null,null,null,null,null,null,null,null,null,null,null,0,0]
[null,null,null,null,null,null,null,null,null,null,null,null,null,null,null,null,null,null,null,null,null,null,null,null,null,null,null,null,null,null,null,0,0]
[null,null,null,null,null,null,null,null,null,null,null,null,null,null,null,null,null,null,null,null,null,null,null,null,null,null,null,null,null,null,null,0,0,null,null,"accoudec diam 82",null,{"$f":"AK22","v":0}]
[null,null,null,null,null,null,null,null,null,null,null,null,null,null,null,null,null,null,null,null,null,null,null,null,null,null,null,null,null,null,null,0,0,null,null,"accoudec diam127",null,{"$f":"SUM(AK23:AK27)","v":0}]
[null,null,null,null,null,null,null,null,null,null,null,null,null,null,null,null,null,null,null,null,null,null,null,null,null,null,null,null,null,null,null,0,0,null,null,null,null,null,null,null,null,null,null,null,null,null,null,null,null,"Enkel natte ruimtes met \"x\" aanvinken als RF = 0,90"]
[null,null,null,null,null,null,null,null,null,null,null,null,null,null,null,null,null,null,null,null,null,null,null,null,null,null,null,null,null,null,null,0,0,null,null,null,null,null,null,null,null,null,null,null,null,null,null,null,null,"Slaapkamer(s) met \"x\" aanvinken als RF = 0,61"]
[null,null,null,null,null,null,null,null,null,null,null,null,null,null,null,null,null,null,null,null,null,null,null,null,null,null,null,null,null,null,null,0,0,null,null,"Kitsamenstelling",null,null,null,"keuken","bk met toilet","toilet","bkzt/wasplaats","slk",null,"Correctiefactoren",null,null,null,"Slaapkamer(s) met \"x\" aanvinken als RF = 0,50"]
[null,null,null,null,null,null,null,null,null,null,null,null,null,null,null,null,null,null,null,null,null,null,null,null,null,null,null,null,null,null,null,0,0,null,null,0.9,{"$f":"IF(E11=\"x\",1,0)","v":0},null,null,{"$f":"1*$AK$37","v":0},{"$f":"1*$AK$37","v":0},0,0,0,null,null,null,null,null,"Alle droge ruimtes met \"x\" aanvinken als RF = 0,43"]
[null,null,null,null,null,null,null,null,null,null,null,null,null,null,null,null,null,null,null,null,null,null,null,null,null,null,null,null,null,null,null,0,0,null,null,0.61,{"$f":"IF(E13=\"x\",1,0)","v":0},null,null,{"$f":"1*$AK$38","v":0},{"$f":"1*$AK$38","v":0},0,0,{"$f":"2*$AK$38","v":0}]
[null,null,null,null,null,null,null,null,null,null,null,null,null,null,null,null,null,null,null,null,null,null,null,null,null,null,null,null,null,null,null,0,0,null,null,"0,43/0,5",{"$f":"IF(E14=\"x\",1,0)","v":0},{"$f":"SUM(AK38:AK39)","v":0},null,{"$f":"1*$AK$39","v":0},{"$f":"1*$AK$39","v":0},0,0,{"$f":"2*$AK$39","v":0}]
[null,null,null,null,null,null,null,null,null,null,null,null,null,null,null,null,null,null,null,null,null,null,null,null,null,null,null,null,null,null,null,null,null,null,null,0.81,{"$f":"IF(E12=\"x\",1,0)","v":0},null,null,{"$f":"1*$AK$40","v":0},{"$f":"1*$AK$40","v":0},{"$f":"1*$AK$40","v":0},0,0]
[null,null,null,null,null,null,null,null,null,null,null,null,null,null,null,null,null,null,null,null,null,null,null,null,null,null,null,null,null,null,null,{"$f":"AG41","v":0},0,null,null,null,null,null,"TUSSENTELLER KIT",{"$f":"SUM(AN37:AN40)","v":0},{"$f":"SUM(AO37:AO40)","v":0},{"$f":"SUM(AP37:AP40)","v":0},{"$f":"SUM(AQ37:AQ40)","v":0},{"$f":"SUM(AR37:AR40)","v":0}]
[null,null,null,null,null,null,null,null,null,{"$f":"IF(B42=\"x\",IF(H42=0,0,IF(H42<K42,K42,IF(H42>L42,L42,H42))),0)","v":0},null,null,null,null,null,null,null,null,null,null,null,null,null,null,null,null,null,null,null,null,null,null,null,null,null,"extra kleppen",null,null,"NODIG",{"$f":"AK23","v":0},{"$f":"AK25","v":0},{"$f":"AK22","v":0},{"$f":"AK24","v":0},{"$f":"AK27","v":0},{"$f":"+SUM(AN42:AR42)","v":0}]
[null,{"$f":"B21+B22+B23+B24+B25+B26+B27","v":0},{"$f":"IF($J$3=\"Nederlands\",'Tekst NL'!C42,'Tekst FR'!C42)","v":"TOTAAL"},null,null,null,null,null,null,{"$f":"SUM(P21:P27)","v":0},null,null,null,null,null,null,null,null,null,null,null,null,null,null,null,null,null,null,null,null,null,null,null,null,null,null,null,null,"SUBTOTAAL",{"$f":"AN42-AN41","v":0},{"$f":"AO42-AO41","v":0},{"$f":"AP42-AP41","v":0},0,0,null,{"$f":"IF(AO42=0,1,0)","v":1}]
[null,{"$f":"IF(B43>11,IF($J$3=\"Nederlands\",'Tekst NL'!B43,'Tekst FR'!B43),\"\")","v":""},null,null,null,null,null,null,null,{"$f":"IF(J43>450,IF($J$3=\"Nederlands\",'Tekst NL'!J43,'Tekst FR'!J43),\"\")","v":""},null,null,null,null,null,null,null,null,null,null,null,null,null,null,null,null,null,null,null,null,null,null,null,null,null,null,null,null,"EXTRA BUITEN KIT",{"$f":"IF(AN43>0,AN43,\"0\")","v":"0"},{"$f":"IF(AO43>0,AO43,\"0\")","v":"0"},{"$f":"IF(AP43>0,AP43,\"0\")","v":"0"},{"$f":"IF(AQ43>0,AQ43,\"0\")-AT43","v":-1},{"$f":"IF(AR43>0,AR43,\"0\")","v":"0"}]
[null,null,null,null,null,null,null,null,null,null,null,null,null,null,null,null,null,null,null,null,null,null,null,null,null,null,null,null,null,null,null,null,null,null,null,null,null,null,null,null,null,null,{"$f":"IF(AQ44<0,\"0\",AQ44)","v":"0"},null,null,{"$f":"IF(AK38=1,0,1)","v":1}]
[null,null,null,null,{"$f":"IF($J$3=\"Nederlands\",'Tekst NL'!E45,'Tekst FR'!E45)","v":"UNIT"},{"$f":"IF(E11=\"x\",F11,IF(E12=\"x\",F12,IF(E13=\"x\",F13,IF(E14=\"x\",F14,IF($J$3=\"Nederlands\",'Tekst NL'!F45,'Tekst FR'!F45)))))","v":"Kies ventilatiesysteem"},null,null,null,null,null,null,null,null,null,null,null,null,null,null,null,null,null,null,null,null,null,null,null,null,null,null,null,null,null,null,null,"ø125","EXTRA ROOSTERBASIS 0,9 & 0,81",{"$f":"IF(AK40=1,AL33-4,IF(AK37=1,AL33-4,\"0\"))","v":"0"}]
[null,null,null,null,null,null,null,null,null,null,null,null,null,null,null,null,null,null,null,null,null,null,null,null,null,null,null,null,null,null,null,null,null,null,null,null,null,"ø125","EXTRA ROOSTERBASIS 0,61/0,5/0,43",{"$f":"IF(AL39=1,AL33-6,\"0\")","v":"0"},{"$f":"SUM(AN47+AN46)","v":0}]
[null,null,null,null,null,null,null,null,null,null,null,null,null,null,null,null,null,null,null,null,null,null,null,null,null,null,null,null,null,null,null,null,null,null,null,null,null,"ø80","EXTRA ROOSTERBASIS 0,9 & 0,81",{"$f":"IF(AK40=1,AL32-1,IF(AK37=1,AL32-1,\"0\"))","v":"0"}]
[null,null,null,null,null,null,null,null,null,null,null,null,null,null,null,null,null,null,null,null,null,null,null,null,null,null,null,null,null,null,null,null,null,null,null,null,null,"ø80","EXTRA ROOSTERBASIS 0,61/0,5/0,43",{"$f":"IF(AL39=1,AL32-1,\"0\")","v":"0"},null,null,{"$f":"IF(SUM(AN48:AN49)<0,0,SUM(AN48:AN49))","v":0}]
[]
[]
[]
[]
[null,{"$f":"IF(B26+B27>5,IF($J$3=\"Nederlands\",'Tekst NL'!B53,'Tekst FR'!B53),\"\")","v":""}]
[null,null,null,null,null,null,null,null,null,null,null,null,null,null,null,null,null,null,null,null,null,null,null,null,null,null,null,null,null,null,null,null,null,null,null,null,null,null,"aantal m kanaal"]
[null,null,null,null,null,null,null,null,null,null,null,null,null,null,null,null,null,null,null,null,null,null,null,null,null,null,null,null,null,null,null,null,null,null,null,"diam 80",{"$f":"AK22","v":0},null,5,{"$f":"AK56*AM56","v":0}]
[null,null,null,null,null,null,null,null,null,null,null,null,null,null,null,null,null,null,null,null,null,null,null,null,null,null,null,null,null,null,null,null,null,null,null,"diam 125",{"$f":"SUM(AK24:AK27)","v":0},null,5,{"$f":"AK57*AM57","v":0}]
[null,{"$f":"IF($J$3=\"Nederlands\",'Tekst NL'!B57,'Tekst FR'!B57)","v":"Keuze doorvoer"},null,null,"( x )",null,null,null,null,null,null,null,null,null,null,null,null,null,null,null,null,null,null,null,null,null,null,null,null,null,null,null,null,null,null,"dubbel 125 ",{"$f":"AK23","v":0},null,10,0]
[null,{"$f":"IF($J$3=\"Nederlands\",'Tekst NL'!B58,'Tekst FR'!B58)","v":"Muurrooster "},null,null,null,null,null,null,null,null,null,null,null,null,null,null,null,null,null,null,null,null,null,null,null,null,null,null,null,null,null,null,null,null,null,null,null,null,null,null,null,null,"Muurrooster ",null,{"$f":"IF(E59=\"x\",1,\"0\")","v":"0"}]
[null,{"$f":"IF($J$3=\"Nederlands\",'Tekst NL'!B59,'Tekst FR'!B59)","v":"Dakdoorvoer plat dak"},null,null,null,null,null,null,null,null,null,null,null,null,null,null,null,null,null,null,null,null,null,null,null,null,null,null,null,null,null,null,null,null,null,null,null,null,null,{"$f":"SUM(AN56:AN58)","v":0},"m easyflex",null,"Dakdoorvoer plat dak",null,{"$f":"IF(E60=\"x\",1,\"0\")","v":"0"}]
[null,{"$f":"IF($J$3=\"Nederlands\",'Tekst NL'!B60,'Tekst FR'!B60)","v":"Dakdoorvoer hellend dak"},null,null,null,null,null,null,null,null,null,null,null,null,null,null,null,null,null,null,null,null,null,null,null,null,null,null,null,null,null,null,null,null,null,null,null,null,null,{"$f":"(AN60/15)","v":0},null,null,"dakdoorvoer hellend dak",null,{"$f":"IF(E61=\"x\",1,\"0\")","v":"0"}]
[null,null,null,null,null,null,null,null,null,null,null,null,null,null,null,null,null,null,null,null,null,null,null,null,null,null,null,null,null,null,null,null,null,null,null,null,null,null,null,{"$f":"ROUNDUP(AN61,0)","v":0},"rollen easyflex"]
[null,{"$f":"IF($J$3=\"Nederlands\",'Tekst NL'!B62,'Tekst FR'!B62)","v":"Materiaallijst"}]
[]
[null,{"$f":"IF($J$3=\"Nederlands\",'Tekst NL'!B64,'Tekst FR'!B64)","v":"Nieuwe \nref 2024"},{"$f":"IF($J$3=\"Nederlands\",'Tekst NL'!C64,'Tekst FR'!C64)","v":"Oude ref"},null,{"$f":"IF($J$3=\"Nederlands\",'Tekst NL'!E64,'Tekst FR'!E64)","v":"Aantal"},{"$f":"IF($J$3=\"Nederlands\",'Tekst NL'!F64,'Tekst FR'!F64)","v":"Eenheidsprijs 01/2024"},{"$f":"IF($J$3=\"Nederlands\",'Tekst NL'!G64,'Tekst FR'!G64)","v":"Totaal"}]
[null,null,null,{"$f":"IF($J$3=\"Nederlands\",'Tekst NL'!D65,'Tekst FR'!D65)","v":"VENTILATIEUNIT"}]
[null,17062,66060102,{"$f":"IF($J$3=\"Nederlands\",'Tekst NL'!D66,'Tekst FR'!D66)","v":"Kit Healthbox 3.0"},{"$f":"AK37","v":0},1764.74,{"$f":"E67*F67","v":0}]
[null,17069,66060114,{"$f":"IF($J$3=\"Nederlands\",'Tekst NL'!D67,'Tekst FR'!D67)","v":"Kit Healthbox 3.0 CO2"},{"$f":"AK40","v":0},1764.74,{"$f":"E68*F68","v":0}]
[null,17063,66060103,{"$f":"IF($J$3=\"Nederlands\",'Tekst NL'!D68,'Tekst FR'!D68)","v":"Kit Healthbox 3.0 Smartzone"},{"$f":"AL39","v":0},1829.53,0]
[null,9567,66060125,{"$f":"IF($J$3=\"Nederlands\",'Tekst NL'!D69,'Tekst FR'!D69)","v":"Regelmodule wasplaats/badkamer zonder toilet"},{"$f":"AQ45","v":"0"},162.04,0]
[null,9568,66060126,{"$f":"IF($J$3=\"Nederlands\",'Tekst NL'!D70,'Tekst FR'!D70)","v":"Regelmodule badkamer met toilet"},{"$f":"AO44","v":"0"},227.4,0]
[null,9323,66060127,{"$f":"IF($J$3=\"Nederlands\",'Tekst NL'!D71,'Tekst FR'!D71)","v":"Regelmodule toilet"},{"$f":"AP44","v":"0"},211.84,0]
[null,9324,66060128,{"$f":"IF($J$3=\"Nederlands\",'Tekst NL'!D72,'Tekst FR'!D72)","v":"Regelmodule keuken"},{"$f":"AN44","v":"0"},194.99,0]
[null,9569,66060129,{"$f":"IF($J$3=\"Nederlands\",'Tekst NL'!D73,'Tekst FR'!D73)","v":"Regelmodule slaapkamer"},{"$f":"IF(E13=\"x\",AM21,AR44)","v":"0"},194.99,0]
[null,11727,66031676,{"$f":"IF($J$3=\"Nederlands\",'Tekst NL'!D74,'Tekst FR'!D74)","v":"Niet-regelbare roosterbasis 174 x 174 mm ø125"},{"$f":"IF(SUM(AN46:AN47)<0,0,SUM(AN46:AN47))","v":0},7.97,0]
[null,11726,66031675,{"$f":"IF($J$3=\"Nederlands\",'Tekst NL'!D75,'Tekst FR'!D75)","v":"Niet-regelbare roosterbasis 134 x 14 mm ø80"},{"$f":"IF(SUM(AN48:AN49)<0,0,SUM(AN48:AN49))","v":0},7.36,0]
[null,17071,66060119,{"$f":"IF($J$3=\"Nederlands\",'Tekst NL'!D76,'Tekst FR'!D76)","v":"Print voor klepcollector"},{"$f":"IF($B$43>9,\"2\",IF($B$43>7,\"1\",\"0\"))","v":"0"},62.09,0,null,{"$f":"IF($J$3=\"Nederlands\",'Tekst NL'!I76,'Tekst FR'!I76)","v":"Minimale hoeveelheden worden standaard ingevuld. Echter kunnen \ncollectoren ook met minder regelmodules gebruikt worden om een compacte installatie te verkrijgen. Max. aantal per Healthbox 3.0: 17071 (66060119) = 2 stuks. 9566 (66060118) = 4 stuks"}]
[null,9566,66060118,{"$f":"IF($J$3=\"Nederlands\",'Tekst NL'!D77,'Tekst FR'!D77)","v":"T-stuk voor klepcollector"},{"$f":"IF($B$43=11,\"4\",IF($B$43=10,\"3\",IF($B$43=9,\"2\",IF($B$43=8,\"1\",\"0\"))))","v":"0"},18.22,0]
[null,11894,"G0932717",{"$f":"IF($J$3=\"Nederlands\",'Tekst NL'!D78,'Tekst FR'!D78)","v":"Uitblaasring 150-160 zwart"},{"$f":"IF(J43>300,\"1\",\"0\")","v":"0"},10.85,{"$f":"E79*F79","v":0}]
[null,null,null,{"$f":"IF($J$3=\"Nederlands\",'Tekst NL'!D79,'Tekst FR'!D79)","v":"LEIDINGEN"}]
[null,27590,"G0013117",{"$f":"IF($J$3=\"Nederlands\",'Tekst NL'!D80,'Tekst FR'!D80)","v":"Ventielaansluiting ø125"},{"$f":"IF(OR(E11=\"x\", E14=\"x\",E12=\"x\"), E88,IF(E13=\"x\", IF(B26=2, 2, ROUNDUP(B26/2, 0)),0))","v":0},23.3,{"$f":"E81*F81","v":0}]
[null,28131,"G0013116",{"$f":"IF($J$3=\"Nederlands\",'Tekst NL'!D81,'Tekst FR'!D81)","v":"Ventielaansluiting ø80"},{"$f":"E89","v":0},16.03,0]
[null,28407,"G0013118",{"$f":"IF($J$3=\"Nederlands\",'Tekst NL'!D82,'Tekst FR'!D82)","v":"Dubbele ventielaansluiting ø125"},{"$f":"B22*2","v":0},38.549999999999997,0]
[null,28410,"G0013132",{"$f":"IF($J$3=\"Nederlands\",'Tekst NL'!D83,'Tekst FR'!D83)","v":"Betondoorvoer 0,25 m ø125 "},{"$f":"E83/2","v":0},3.26,0]
[null,28129,"G0013111",{"$f":"IF($J$3=\"Nederlands\",'Tekst NL'!D84,'Tekst FR'!D84)","v":"Koppelstuk met rubbers, plat ovaal"},{"$f":"E83*2+(E81+E82)*2","v":0},3.06,0]
[null,27592,"G0013122",{"$f":"IF($J$3=\"Nederlands\",'Tekst NL'!D85,'Tekst FR'!D85)","v":"Koppelstuk met rubbers, rond ø125"},{"$f":"(E88*2)+E118","v":0},5.1100000000000003,0]
[null,28133,"G0013121",{"$f":"IF($J$3=\"Nederlands\",'Tekst NL'!D86,'Tekst FR'!D86)","v":"Koppelstuk met rubbers, rond ø80"},{"$f":"E89+E117","v":0},5.1100000000000003,0]
[null,28906,"G0013147",{"$f":"IF($J$3=\"Nederlands\",'Tekst NL'!D87,'Tekst FR'!D87)","v":"Kit haakse betondoorvoer ø125"},{"$f":"AK57","v":0},30.11,{"$f":"E88*F88","v":0}]
[null,28414,"G0013146",{"$f":"IF($J$3=\"Nederlands\",'Tekst NL'!D88,'Tekst FR'!D88)","v":"Kit haakse betondoorvoer ø80"},{"$f":"AK56","v":0},22.91,0]
[null,28406,"G0013110",{"$f":"IF($J$3=\"Nederlands\",'Tekst NL'!D89,'Tekst FR'!D89)","v":"Flexibel kanaal 140 x 64 15 m"},{"$f":"AN62","v":0},192.5,0]
[null,28411,"G0013137",{"$f":"IF($J$3=\"Nederlands\",'Tekst NL'!D90,'Tekst FR'!D90)","v":"Metalen overzetbeugel"},{"$f":"10*E90","v":0},1.82,0]
[null,11682,66014133,{"$f":"IF($J$3=\"Nederlands\",'Tekst NL'!D91,'Tekst FR'!D91)","v":"Acoudec 25 mm ø82 x 0,5 m"},{"$f":"AL32","v":0},16.72,{"$f":"E92*F92","v":0}]
[null,8757,66014134,{"$f":"IF($J$3=\"Nederlands\",'Tekst NL'!D92,'Tekst FR'!D92)","v":"Acoudec 25 mm ø127 x 0,5 m"},{"$f":"AL33","v":0},19.46,0]
[null,11678,66014110,{"$f":"IF($J$3=\"Nederlands\",'Tekst NL'!D93,'Tekst FR'!D93)","v":"Klemband Ø50-90mm"},{"$f":"E92","v":0},1.81,{"$f":"E94*F94","v":0}]
[null,11679,66014111,{"$f":"IF($J$3=\"Nederlands\",'Tekst NL'!D94,'Tekst FR'!D94)","v":"Klemband Ø60-165mm"},{"$f":"E93","v":0},2.27,{"$f":"E95*F95","v":0}]
[null,8755,66014106,{"$f":"IF($J$3=\"Nederlands\",'Tekst NL'!D95,'Tekst FR'!D95)","v":"Flexibel Isodec ø152 x 10 m"},{"$f":"E67+E69+E68","v":0},87.34,0]
[]
[null,null,null,{"$f":"IF($J$3=\"Nederlands\",'Tekst NL'!D97,'Tekst FR'!D97)","v":"DOORVOEREN*"}]
[null,null,null,{"$f":"IF($J$3=\"Nederlands\",'Tekst NL'!D98,'Tekst FR'!D98)","v":"* Algemeen voorstel. Zie technische fiche om zekerheid te hebben over juiste model volgens type dak"}]
[null,12013,76050001,{"$f":"IF($J$3=\"Nederlands\",'Tekst NL'!D99,'Tekst FR'!D99)","v":"Geveldoorvoerrooster zwart ø150"},{"$f":"IF(E59=\"\",0,1)","v":0},115.35,{"$f":"E100*F100","v":0},null,{"$f":"IF($J$3=\"Nederlands\",'Tekst NL'!I99,'Tekst FR'!I99)","v":"Zie ook variant in wit: 17120 (76050002)"}]
[null,11675,66014096,{"$f":"IF($J$3=\"Nederlands\",'Tekst NL'!D100,'Tekst FR'!D100)","v":"Designdakdoorvoer zwart ø150/160"},{"$f":"IF(E61=\"\",0,1)","v":0},129.04,{"$f":"E101*F101","v":0},null,{"$f":"IF($J$3=\"Nederlands\",'Tekst NL'!I100,'Tekst FR'!I100)","v":"Zie ook variant in  terracota: 8753 (66014097)"}]
[null,11693,66014263,{"$f":"IF($J$3=\"Nederlands\",'Tekst NL'!D101,'Tekst FR'!D101)","v":"Dakdoorvoer XL platte daken 160"},{"$f":"IF(E60=\"\",0,1)","v":0},181.5,{"$f":"E102*F102","v":0}]
[]
[null,null,null,{"$f":"IF($J$3=\"Nederlands\",'Tekst NL'!D103,'Tekst FR'!D103)","v":"ROOSTERS"}]
[null,11722,66031630,{"$f":"IF($J$3=\"Nederlands\",'Tekst NL'!D104,'Tekst FR'!D104)","v":"XD25-50 puro Ø80"},{"$f":"AK22","v":0},12.94,{"$f":"E105*F105","v":0},null,{"$f":"IF($J$3=\"Nederlands\",'Tekst NL'!I104,'Tekst FR'!I104)","v":"Zie ook varianten: "}]
[null,10937,66031631,{"$f":"IF($J$3=\"Nederlands\",'Tekst NL'!D105,'Tekst FR'!D105)","v":"XD75 puro  Ø125"},{"$f":"SUM(AK23:AK27)","v":0},18.5,0,null,{"$f":"IF($J$3=\"Nederlands\",'Tekst NL'!I105,'Tekst FR'!I105)","v":"Zie ook varianten: "}]
[]
[null,{"$f":"IF($J$3=\"Nederlands\",'Tekst NL'!B107,'Tekst FR'!B107)","v":"Deze lijst is indicatief en geeft enkel een goede raming voor de benodigde hoeveelheid kanalen. \nEr kunnen stukken ontbreken of stukken te veel zijn. Stijgleidingen moeten nog voorzien worden, net als eventuele andere toebehoren."},null,{"$f":"IF($J$3=\"Nederlands\",'Tekst NL'!D107,'Tekst FR'!D107)","v":0},{"$f":"IF($J$3=\"Nederlands\",'Tekst NL'!E107,'Tekst FR'!E107)","v":0},{"$f":"IF($J$3=\"Nederlands\",'Tekst NL'!F107,'Tekst FR'!F107)","v":0},{"$f":"IF($J$3=\"Nederlands\",'Tekst NL'!G107,'Tekst FR'!G107)","v":0}]
[null,{"$f":"IF($J$3=\"Nederlands\",'Tekst NL'!B108,'Tekst FR'!B108)","v":0},null,{"$f":"IF($J$3=\"Nederlands\",'Tekst NL'!D108,'Tekst FR'!D108)","v":0},{"$f":"IF($J$3=\"Nederlands\",'Tekst NL'!E108,'Tekst FR'!E108)","v":0},{"$f":"IF($J$3=\"Nederlands\",'Tekst NL'!F108,'Tekst FR'!F108)","v":0},{"$f":"IF($J$3=\"Nederlands\",'Tekst NL'!G108,'Tekst FR'!G108)","v":0}]
[null,{"$f":"IF($J$3=\"Nederlands\",'Tekst NL'!B109,'Tekst FR'!B109)","v":0},null,{"$f":"IF($J$3=\"Nederlands\",'Tekst NL'!D109,'Tekst FR'!D109)","v":0},null,{"$f":"IF($J$3=\"Nederlands\",'Tekst NL'!F109,'Tekst FR'!F109)","v":0},{"$f":"IF($J$3=\"Nederlands\",'Tekst NL'!G109,'Tekst FR'!G109)","v":0}]
[null,null,null,{"$f":"IF($J$3=\"Nederlands\",'Tekst NL'!D110,'Tekst FR'!D110)","v":"Opties (zelf in te vullen)"}]
[null,28132,"G0013120",{"$f":"IF($J$3=\"Nederlands\",'Tekst NL'!D111,'Tekst FR'!D111)","v":"Y-stuk plat ovaal (RF 0,61)"},null,42.15,{"$f":"E112*F112","v":0},null,{"$f":"IF(E112>0,IF($J$3=\"Nederlands\",'Tekst NL'!I111,'Tekst FR'!I111),\"\")","v":""}]
[]
[null,11728,66031686,{"$f":"IF($J$3=\"Nederlands\",'Tekst NL'!D113,'Tekst FR'!D113)","v":"Regelbare roosterbasis 174 x 174 mm ø125 (RF 0,61)"},null,23.97,{"$f":"E114*F114","v":0},null,{"$f":"IF(E114>0,IF($J$3=\"Nederlands\",'Tekst NL'!I113,'Tekst FR'!I113),\"\")","v":""}]
[null,9299,66031687,{"$f":"IF($J$3=\"Nederlands\",'Tekst NL'!D114,'Tekst FR'!D114)","v":"Regelbare roosterbasis 134 x 14 mm ø80 (RF 0,61)"},null,19.489999999999998,{"$f":"E115*F115","v":0},null,{"$f":"IF(E115>0,IF($J$3=\"Nederlands\",'Tekst NL'!I114,'Tekst FR'!I114),\"\")","v":""}]
[]
[null,28904,"G0013131",{"$f":"IF($J$3=\"Nederlands\",'Tekst NL'!D116,'Tekst FR'!D116)","v":"Stijgleiding 3 m ø80"},null,21.55,{"$f":"E117*F117","v":0}]
[null,28903,"G0013130",{"$f":"IF($J$3=\"Nederlands\",'Tekst NL'!D117,'Tekst FR'!D117)","v":"Stijgleiding 3 m ø125"},null,30.03,{"$f":"E118*F118","v":0}]
[]
[null,null,null,null,null,0,{"$f":"E120*F120","v":0},null,{"$f":"IF($J$3=\"Nederlands\",'Tekst NL'!I119,'Tekst FR'!I119)","v":"Andere zelf in te vullen indien gewenst"}]
[null,null,null,null,null,0,{"$f":"E121*F121","v":0},null,{"$f":"IF($J$3=\"Nederlands\",'Tekst NL'!I120,'Tekst FR'!I120)","v":"Andere zelf in te vullen indien gewenst"}]
[null,null,null,null,null,0,0,null,{"$f":"IF($J$3=\"Nederlands\",'Tekst NL'!I121,'Tekst FR'!I121)","v":"Andere zelf in te vullen indien gewenst"}]
[]
[null,null,null,{"$f":"IF($J$3=\"Nederlands\",'Tekst NL'!D123,'Tekst FR'!D123)","v":"TOTAAL PRIJS RENSON"},null,null,{"$f":"SUM(G67:G107)+SUM(G112:G122)","v":0}]
[]
[null,{"$f":"IF($J$3=\"Nederlands\",'Tekst NL'!B125,'Tekst FR'!B125)","v":"U vindt onze huidige prijslijst & andere documentatie terug op ons portaal voor professionals: https://www.renson.eu/nl-be/voor-professionals "}]
[]
[]
[null,{"$f":"IF($J$3=\"Nederlands\",'Tekst NL'!B128,'Tekst FR'!B128)","v":"Datum"},null,{"$f":"IF($J$3=\"Nederlands\",'Tekst NL'!D128,'Tekst FR'!D128)","v":"2024-01-08"},{"$f":"IF($J$3=\"Nederlands\",'Tekst NL'!E128,'Tekst FR'!E128)","v":"Offerte 30 dagen geldig"}]

{"sheet":"Tekst NL","index":1,"n_rows":128,"n_cols":12,"rows_kept":128,"cut":false,"hidden":true,"merged":[[17,2,17,3],[41,2,41,3],[23,2,23,3],[24,2,24,3],[25,2,25,3],[26,2,26,3],[18,2,18,3],[64,4,64,6],[106,1,108,6],[12,5,12,8],[10,5,10,8],[13,5,13,8],[78,4,78,6],[102,4,102,6],[75,8,77,13],[11,5,11,8],[10,9,10,13],[11,9,11,13],[12,9,12,13],[13,9,13,13],[20,2,20,3],[21,2,21,3],[22,2,22,3]]}
[]
[null,null,null,null,null,"In te vullen velden","   Volgens BE wetgeving (residentieel)",null,null,"Versie:"]
[]
[null,null,null,null,null,"Laatste versie file & tutorial: ","https://www.renson.eu/nl-be/voor-professionals/easyflex-tool"]
[]
[]
[]
[]
[null,"Ingave velden"]
[null,null,null,null,"(x/o)"]
[null,null,null,"Keuze unit / reductiefactor (EPB)",null,"Healthbox 3.0 (RF 0,9)",null,null,null,"mechanische afvoer in alle vochtige ruimtes. Lokale regeling en detectie van alle mechanische afvoerdebieten"]
[null,null,null,null,null,"Healthbox 3.0 CO2 (0,81)",null,null,null,"mechanische afvoer in alle vochtige ruimtes. Lokale regeling en detectie van alle mechanische afvoerdebieten + centrale regeling en detectie op basis van CO2"]
[null,null,null,null,null,"Healthbox 3.0 Smartzone (RF 0,61)",null,null,null,"mechanische afvoer in alle vochtige ruimtes en slaapkamers. Lokale regeling en detectie in alle vochtige ruimtes, centrale regeling en detectie in 2 of meer slaapkamers"]
[null,null,null,null,null,"Healthbox 3.0 Smartzone (RF 0,5 / 0,43)",null,null,null,"0,43: mechanische afvoer in alle vochtige ruimtes en droge ruimtes. Bij open keuken, volstaat de CO2 gestuurde afvoer in de keuken en hoeft er geen afzonderlijke afvoer in de leefruimte bij geplaatst te worden! Lokale regeling en detectie van alle mechanische afvoerdebieten. 0,50 : mechanische afvoer in alle vochtige ruimtes en slaapkamers. Lokale regeling en\ndetectie van alle mechanische afvoerdebieten"]
[]
[]
[]
[null,null,"Afvoer"]
[null,"Aantal","Ruimte(s) waar ventilatie moet voorzien worden:",null,null,null,null,null,null,"Debiet m³/h (per ruimte)"]
[null,null,null,null,null,null,null,null,null,"m³/h"]
[null,null,"Toilet",null,null,null,null,null,null,{"$f":"IF(B21=\"\",0,K21)","v":0},25,25]
[null,null,"Keuken",null,null,null,null,null,null,{"$f":"IF(B22=\"\",0,K22)","v":0},75,76]
[null,null,"Wasplaats",null,null,null,null,null,null,0,50,51]
[null,null,"Badkamer zonder toilet",null,null,null,null,null,null,0,50,51]
[null,null,"Badkamer met toilet",null,null,null,null,null,null,0,50,51]
[null,null,"Slaapkamer",null,null,null,null,null,null,0,30,31]
[null,null,"Andere droge ruimtes (bv. bureau)",null,null,null,null,null,null,{"$f":"IF(B27=\"\",0,K27)","v":0},30,41]
[]
[null,{"$f":"SUM(B21:B27)","v":0}]
[]
[]
[]
[]
[]
[]
[]
[]
[]
[]
[]
[null,null,null,null,null,null,null,null,null,{"$f":"IF(B41=\"x\",IF(H41=0,0,IF(H41<K41,K41,IF(H41>L41,L41,H41))),0)","v":0}]
[null,{"$f":"B21+B22+B23+B24+B25+B26+B27","v":0},"TOTAAL",null,null,null,null,null,null,{"$f":"SUM(#REF!)","v":{"$error":"#REF!"}}]
[null,"Maximaal 11 kleppen op 1 unit",null,null,null,null,null,null,null,"Debiet te groot voor één ventilatie unit"]
[]
[null,null,null,null,"UNIT",{"$f":"IF(E11=\"x\",F11,IF(E13=\"x\",F13,IF(E14=\"x\",F14,\"Kies ventilatiesysteem\")))","v":"Kies ventilatiesysteem"}]
[]
[]
[]
[]
[]
[]
[]
[null,"Mogelijks het max. aantal CO² regelmodules overschreden. Zie handleiding Healthbox 3.0. Dit hangt af van het totaal aantal regelmodules en het aantal klepcollectoren"]
[]
[]
[]
[null,"Keuze doorvoer",null,null,"(x/o)"]
[null,"Muurrooster "]
[null,"Dakdoorvoer plat dak"]
[null,"Dakdoorvoer hellend dak"]
[]
[null,"Materiaallijst"]
[]
[null,"Nieuwe \nref 2024","Oude ref",null,"Aantal","Eenheidsprijs 01/2024","Totaal"]
[null,null,null,"VENTILATIEUNIT"]
[null,17062,66060102,"Kit Healthbox 3.0"]
[null,17069,66060114,"Kit Healthbox 3.0 CO2"]
[null,17063,66060103,"Kit Healthbox 3.0 Smartzone"]
[null,9567,66060125,"Regelmodule wasplaats/badkamer zonder toilet"]
[null,9568,66060126,"Regelmodule badkamer met toilet"]
[null,9323,66060127,"Regelmodule toilet"]
[null,9324,66060128,"Regelmodule keuken"]
[null,9569,66060129,"Regelmodule slaapkamer"]
[null,11727,66031676,"Niet-regelbare roosterbasis 174 x 174 mm ø125"]
[null,11726,66031675,"Niet-regelbare roosterbasis 134 x 14 mm ø80"]
[null,17071,66060119,"Print voor klepcollector",null,null,null,null,"Minimale hoeveelheden worden standaard ingevuld. Echter kunnen \ncollectoren ook met minder regelmodules gebruikt worden om een compacte installatie te verkrijgen. Max. aantal per Healthbox 3.0: 17071 (66060119) = 2 stuks. 9566 (66060118) = 4 stuks"]
[null,9566,66060118,"T-stuk voor klepcollector"]
[null,11894,"G0932717","Uitblaasring 150-160 zwart"]
[null,null,null,"LEIDINGEN"]
[null,27590,"G0013117","Ventielaansluiting ø125"]
[null,28131,"G0013116","Ventielaansluiting ø80"]
[null,28407,"G0013118","Dubbele ventielaansluiting ø125"]
[null,28410,"G0013132","Betondoorvoer 0,25 m ø125 "]
[null,28129,"G0013111","Koppelstuk met rubbers, plat ovaal"]
[null,27592,"G0013122","Koppelstuk met rubbers, rond ø125"]
[null,28133,"G0013121","Koppelstuk met rubbers, rond ø80"]
[null,28906,"G0013147","Kit haakse betondoorvoer ø125"]
[null,28414,"G0013146","Kit haakse betondoorvoer ø80"]
[null,28406,"G0013110","Flexibel kanaal 140 x 64 15 m"]
[null,28411,"G0013137","Metalen overzetbeugel"]
[null,11682,66014133,"Acoudec 25 mm ø82 x 0,5 m"]
[null,8757,66014134,"Acoudec 25 mm ø127 x 0,5 m"]
[null,11678,66014110,"Klemband Ø50-90mm"]
[null,11679,66014111,"Klemband Ø60-165mm"]
[null,8755,66014106,"Flexibel Isodec ø152 x 10 m"]
[]
[null,null,null,"DOORVOEREN*"]
[null,null,null,"* Algemeen voorstel. Zie technische fiche om zekerheid te hebben over juiste model volgens type dak"]
[null,12013,76050001,"Geveldoorvoerrooster zwart ø150",null,null,null,null,"Zie ook variant in wit: 17120 (76050002)"]
[null,11675,66014096,"Designdakdoorvoer zwart ø150/160",null,null,null,null,"Zie ook variant in  terracota: 8753 (66014097)"]
[null,11693,66014263,"Dakdoorvoer XL platte daken 160"]
[]
[null,null,null,"ROOSTERS"]
[null,11722,66031630,"XD25-50 puro Ø80",null,null,null,null,"Zie ook varianten: "]
[null,10937,66031631,"XD75 puro  Ø125",null,null,null,null,"Zie ook varianten: "]
[]
[null,"Deze lijst is indicatief en geeft enkel een goede raming voor de benodigde hoeveelheid kanalen. \nEr kunnen stukken ontbreken of stukken te veel zijn. Stijgleidingen moeten nog voorzien worden, net als eventuele andere toebehoren."]
[]
[]
[null,null,null,"Opties (zelf in te vullen)"]
[null,28132,"G0013120","Y-stuk plat ovaal (RF 0,61)",null,null,null,null,"Per Y-stuk nog 2 x 'koppelstuk met rubbers, plat ovaal' toevoegen 18129 (G0013111)"]
[]
[null,11728,66031686,"Regelbare roosterbasis 174 x 174 mm ø125 (RF 0,61)",null,null,null,null,"Niet-regelbare roosterbasis 11727 (66031676) verwijderen"]
[null,9299,66031687,"Regelbare roosterbasis 134 x 14 mm ø80 (RF 0,61)",null,null,null,null,"Niet-regelbare roosterbasis 11726 (66031675) verwijderen"]
[]
[null,28904,"G0013131","Stijgleiding 3 m ø80"]
[null,28903,"G0013130","Stijgleiding 3 m ø125"]
[]
[null,null,null,null,null,null,null,null,"Andere zelf in te vullen indien gewenst"]
[null,null,null,null,null,null,null,null,"Andere zelf in te vullen indien gewenst"]
[null,null,null,null,null,null,null,null,"Andere zelf in te vullen indien gewenst"]
[]
[null,null,null,"TOTAAL PRIJS RENSON"]
[]
[null,"U vindt onze huidige prijslijst & andere documentatie terug op ons portaal voor professionals: https://www.renson.eu/nl-be/voor-professionals "]
[]
[]
[null,"Datum",null,{"$f":"TODAY()","v":"2024-01-08"},"Offerte 30 dagen geldig"]

{"sheet":"Tekst FR","index":2,"n_rows":128,"n_cols":50,"rows_kept":128,"cut":false,"hidden":true,"merged":[[25,2,25,3],[26,2,26,3],[41,2,41,3],[20,2,20,3],[21,2,21,3],[22,2,22,3],[23,2,23,3],[24,2,24,3],[102,4,102,6],[106,1,108,6],[96,3,96,6],[10,5,10,8],[12,5,12,8],[13,5,13,8],[64,4,64,6],[78,4,78,6],[75,8,77,13],[11,5,11,8],[10,9,10,13],[11,9,11,13],[12,9,12,13],[13,9,13,13],[17,2,17,3],[18,2,18,3]]}
[]
[null,null,null,null,null,"Champs à remplir","       Selon loi Belge (résidentiel)",null,null,"Version:"]
[]
[null,null,null,null,null,"Dernière version outil & tutoriel:","https://www.renson.eu/fr-be/pour-les-professionnels/easyflex-tool"]
[]
[]
[]
[]
[null,"Ingave velden"]
[null,null,null,null,"(x/o)"]
[null,null,null,"Choix unité / Facteur de réduction (PEB)",null,"Healthbox 3.0 (FR 0,9)",null,null,null,"Evacuation mécanique dans toutes les pièces humides. Réglage et détection par pièce de tous les débits d’évacuation mécanique",null,null,null,null,null,null,null,null,null,null,null,null,null,null,null,null,null,null,null,null,null,null,null,null,null,null,null,null,null,null,null,null,null,null,null,null,null,null,null,"Zet een \"x\" bij de keuze van de unit"]
[null,null,null,null,null,"Healthbox 3.0 CO2 (0,81)",null,null,null,"Evacuation mécanique dans toutes les pièces humides. Réglage et détection par pièce de tous les débits d’évacuation mécanique + réglage et détection basés sur le CO2 mesuré de manière centralisée"]
[null,null,null,null,null,"Healthbox 3.0 Smartzone (FR 0,61)",null,null,null,"Evacuation mécanique dans toutes les pièces humides et les chambres à coucher. Réglage et détection par pièce dans toutes les pièces humides. Réglage et détection centralisés de 2 ou plus de chambres à coucher"]
[null,null,null,null,null,"Healthbox 3.0 Smartzone (FR 0,5 / 0,43)",null,null,null,"0,43: Evacuation mécanique dans toutes les pièces humides et sèches. En cas de cuisine ouverte, l’extraction commandée par détection de CO2 dans la cuisine suffit et il ne faut pas placer d’extraction supplémentaire dans le living ! Réglage et détection par pièce de tous les débits d’évacuation mécanique. 0,50: Evacuation mécanique dans toutes les pièces humides et les chambres à coucher. Réglage et détection par pièce de tous les débits d’évacuation. mécanique"]
[]
[]
[]
[null,null,"Extraction"]
[null,"Quantité","Pièce(s) ou on doit prévoir la ventilation:",null,null,null,null,null,null,"Débit m³/h (par pièce)",null,null,null,null,null,null,null,null,null,null,null,"ROOSTERBASISSEN",null,null,null,null,null,null,null,null,null,"aantal ventielen","Tellers",null,null,null,null,null,null,null,"Regels"]
[null,null,null,null,null,null,null,null,null,"m³/h",null,null,null,null,null,null,null,null,null,null,null,null,null,null,null,null,null,null,null,null,null,null,"teller ruimtes",null,null,null,null,null,null,null,"toilet diam 80 , alle andere ruimtes diam 125",null,null,null,null,null,null,null,null,"1. Aanduiding type ruimte met \"x\" "]
[null,null,"Toilette",null,null,null,null,null,null,{"$f":"IF(B21=\"\",0,K21)","v":0},25,25,null,null,null,{"$f":"B21*J21","v":0},null,null,null,null,null,null,null,null,null,null,null,null,null,null,null,{"$f":"AG21","v":0},{"$f":"IF(B21=\"x\",1,0)","v":0},null,null,null,null,null,{"$f":"IF(B26>4,\"1\",\"0\")","v":"0"}]
[null,null,"Cuisine",null,null,null,null,null,null,{"$f":"IF(B22=\"\",0,K22)","v":0},75,76,null,null,null,{"$f":"B22*J22","v":0},null,null,null,null,null,null,null,null,null,null,null,null,null,null,null,{"$f":"AG22","v":0},{"$f":"IF(B22=\"x\",1,0)","v":0},null,null,"toiletten",{"$f":"B21","v":0}]
[null,null,"Buanderie",null,null,null,null,null,null,0,50,51,null,null,null,0,null,null,null,null,null,null,null,null,null,null,null,null,null,null,null,{"$f":"AG23","v":0},0,null,null,"keuken",{"$f":"B22","v":0}]
[null,null,"Salle de bains sans toilet",null,null,null,null,null,null,0,50,51,null,null,null,{"$f":"B24*J24","v":0},null,null,null,null,null,null,null,null,null,null,null,null,null,null,null,0,0,null,null,"wasplaats / BK z toilet",{"$f":"B23+B24","v":0}]
[null,null,"Salles de bains avec toilette",null,null,null,null,null,null,0,50,51,null,null,null,{"$f":"B25*J25","v":0},null,null,null,null,null,null,null,null,null,null,null,null,null,null,null,0,0,null,null,"Badkamer met toilet",{"$f":"B25","v":0}]
[null,null,"Chambe à coucher",null,null,null,null,null,null,0,30,31,null,null,null,0,null,null,null,null,null,null,null,null,null,null,null,null,null,null,null,0,0]
[null,null,"Autre pièce sèche (ex. Bureau)",null,null,null,null,null,null,{"$f":"IF(B27=\"\",0,K27)","v":0},30,41,null,null,null,0,null,null,null,null,null,null,null,null,null,null,null,null,null,null,null,0,0,null,null,"slaapkamers",{"$f":"B26+B27","v":0}]
[null,null,null,null,null,null,null,null,null,null,null,null,null,null,null,null,null,null,null,null,null,null,null,null,null,null,null,null,null,null,null,0,0]
[null,{"$f":"SUM(B21:B27)","v":0},null,null,null,null,null,null,null,null,null,null,null,null,null,null,null,null,null,null,null,null,null,null,null,null,null,null,null,null,null,0,0]
[null,null,null,null,null,null,null,null,null,null,null,null,null,null,null,null,null,null,null,null,null,null,null,null,null,null,null,null,null,null,null,0,0]
[null,null,null,null,null,null,null,null,null,null,null,null,null,null,null,null,null,null,null,null,null,null,null,null,null,null,null,null,null,null,null,0,0]
[null,null,null,null,null,null,null,null,null,null,null,null,null,null,null,null,null,null,null,null,null,null,null,null,null,null,null,null,null,null,null,0,0,null,null,"accoudec diam 82",null,{"$f":"AK22","v":0}]
[null,null,null,null,null,null,null,null,null,null,null,null,null,null,null,null,null,null,null,null,null,null,null,null,null,null,null,null,null,null,null,0,0,null,null,"accoudec diam127",null,{"$f":"SUM(AK23:AK27)","v":0}]
[null,null,null,null,null,null,null,null,null,null,null,null,null,null,null,null,null,null,null,null,null,null,null,null,null,null,null,null,null,null,null,0,0,null,null,null,null,null,null,null,null,null,null,null,null,null,null,null,null,"Enkel natte ruimtes met \"x\" aanvinken als RF = 0,90"]
[null,null,null,null,null,null,null,null,null,null,null,null,null,null,null,null,null,null,null,null,null,null,null,null,null,null,null,null,null,null,null,0,0,null,null,null,null,null,null,null,null,null,null,null,null,null,null,null,null,"Slaapkamer(s) met \"x\" aanvinken als RF = 0,61"]
[null,null,null,null,null,null,null,null,null,null,null,null,null,null,null,null,null,null,null,null,null,null,null,null,null,null,null,null,null,null,null,0,0,null,null,"Kitsamenstelling",null,null,null,"keuken","bk met toilet","toilet","bkzt/wasplaats","slk",null,"Correctiefactoren",null,null,null,"Slaapkamer(s) met \"x\" aanvinken als RF = 0,50"]
[null,null,null,null,null,null,null,null,null,null,null,null,null,null,null,null,null,null,null,null,null,null,null,null,null,null,null,null,null,null,null,0,0,null,null,0.9,{"$f":"IF(E11=\"x\",1,0)","v":0},null,null,{"$f":"1*$AK$37","v":0},{"$f":"1*$AK$37","v":0},0,0,0,null,null,null,null,null,"Alle droge ruimtes met \"x\" aanvinken als RF = 0,43"]
[null,null,null,null,null,null,null,null,null,null,null,null,null,null,null,null,null,null,null,null,null,null,null,null,null,null,null,null,null,null,null,0,0,null,null,0.61,{"$f":"IF(E13=\"x\",1,0)","v":0},null,null,{"$f":"1*$AK$38","v":0},{"$f":"1*$AK$38","v":0},0,0,{"$f":"2*$AK$38","v":0}]
[null,null,null,null,null,null,null,null,null,null,null,null,null,null,null,null,null,null,null,null,null,null,null,null,null,null,null,null,null,null,null,0,0,null,null,"0,43/0,5",{"$f":"IF(E14=\"x\",1,0)","v":0},{"$f":"SUM(AK38:AK39)","v":0},null,{"$f":"1*$AK$39","v":0},{"$f":"1*$AK$39","v":0},0,0,{"$f":"2*$AK$39","v":0}]
[null,null,null,null,null,null,null,null,null,null,null,null,null,null,null,null,null,null,null,null,null,null,null,null,null,null,null,null,null,null,null,{"$f":"AG40","v":0},0,null,null,null,null,null,"TUSSENTELLER KIT",{"$f":"SUM(AN37:AN39)","v":0},{"$f":"SUM(AO37:AO39)","v":0},0,0,{"$f":"SUM(AR37:AR39)","v":0}]
[null,null,null,null,null,null,null,null,null,{"$f":"IF(B41=\"x\",IF(H41=0,0,IF(H41<K41,K41,IF(H41>L41,L41,H41))),0)","v":0},null,null,null,null,null,null,null,null,null,null,null,null,null,null,null,null,null,null,null,null,null,null,null,null,null,"extra kleppen",null,null,"NODIG",{"$f":"AK23","v":0},{"$f":"AK25","v":0},{"$f":"AK22","v":0},{"$f":"AK24","v":0},{"$f":"AK27","v":0},{"$f":"+SUM(AN41:AR41)","v":0}]
[null,{"$f":"B21+B22+B23+B24+B25+B26+B27","v":0},"TOTAL",null,null,null,null,null,null,{"$f":"SUM(P21:P27)","v":0},null,null,null,null,null,null,null,null,null,null,null,null,null,null,null,null,null,null,null,null,null,null,null,null,null,null,null,null,"SUBTOTAAL",{"$f":"AN41-AN40","v":0},{"$f":"AO41-AO40","v":0},{"$f":"AP41-AP40","v":0},0,0,null,{"$f":"IF(AO41=0,1,0)","v":1}]
[null,"Maximum 11 modules de réglage sur 1 unité",null,null,null,null,null,null,null,"Débit trop élevé pour 1 unité",null,null,null,null,null,null,null,null,null,null,null,null,null,null,null,null,null,null,null,null,null,null,null,null,null,null,null,null,"EXTRA BUITEN KIT",{"$f":"IF(AN42>0,AN42,\"0\")","v":"0"},{"$f":"IF(AO42>0,AO42,\"0\")","v":"0"},{"$f":"IF(AP42>0,AP42,\"0\")","v":"0"},{"$f":"IF(AQ42>0,AQ42,\"0\")-AT42","v":-1},{"$f":"IF(AR42>0,AR42,\"0\")","v":"0"}]
[null,null,null,null,null,null,null,null,null,null,null,null,null,null,null,null,null,null,null,null,null,null,null,null,null,null,null,null,null,null,null,null,null,null,null,null,null,null,null,null,null,null,{"$f":"IF(AQ43<0,\"0\",AQ43)","v":"0"},null,null,{"$f":"IF(AK38=1,0,1)","v":1}]
[null,null,null,null,"UNITÉ",{"$f":"IF(E11=\"x\",F11,IF(E13=\"x\",F13,IF(E14=\"x\",F14,\"Choix système de ventilation\")))","v":"Choix système de ventilation"},null,null,null,null,null,null,null,null,null,null,null,null,null,null,null,null,null,null,null,null,null,null,null,null,null,null,null,null,null,null,null,"ø125","EXTRA ROOSTERBASIS 0,9",{"$f":"IF(AK37=1,AL33-4,\"0\")","v":"0"}]
[null,null,null,null,null,null,null,null,null,null,null,null,null,null,null,null,null,null,null,null,null,null,null,null,null,null,null,null,null,null,null,null,null,null,null,null,null,"ø125","EXTRA ROOSTERBASIS 0,61/0,5/0,43",{"$f":"IF(AL39=1,AL33-6,\"0\")","v":"0"},{"$f":"SUM(AN46+AN45)","v":0}]
[null,null,null,null,null,null,null,null,null,null,null,null,null,null,null,null,null,null,null,null,null,null,null,null,null,null,null,null,null,null,null,null,null,null,null,null,null,"ø80","EXTRA ROOSTERBASIS 0,9",{"$f":"IF(AK37=1,AL32-1,\"0\")","v":"0"}]
[null,null,null,null,null,null,null,null,null,null,null,null,null,null,null,null,null,null,null,null,null,null,null,null,null,null,null,null,null,null,null,null,null,null,null,null,null,"ø80","EXTRA ROOSTERBASIS 0,61/0,5/0,43",{"$f":"IF(AL39=1,AL32-1,\"0\")","v":"0"},null,null,{"$f":"IF(SUM(AN47:AN48)<0,0,SUM(AN47:AN48))","v":0}]
[]
[]
[]
[]
[null,"Le nombre maximal des modules de réglage avec CO² est potentiellement dépassé. Voir manuel Healthbox 3.0. Ceci dépends du nombre de modules de réglage total et le nombre de collecteurs utilisé"]
[null,null,null,null,null,null,null,null,null,null,null,null,null,null,null,null,null,null,null,null,null,null,null,null,null,null,null,null,null,null,null,null,null,null,null,null,null,null,"aantal m kanaal"]
[null,null,null,null,null,null,null,null,null,null,null,null,null,null,null,null,null,null,null,null,null,null,null,null,null,null,null,null,null,null,null,null,null,null,null,"diam 80",{"$f":"AK22","v":0},null,5,{"$f":"AK55*AM55","v":0}]
[null,null,null,null,null,null,null,null,null,null,null,null,null,null,null,null,null,null,null,null,null,null,null,null,null,null,null,null,null,null,null,null,null,null,null,"diam 125",{"$f":"SUM(AK24:AK27)","v":0},null,5,{"$f":"AK56*AM56","v":0}]
[null,"Choix sortie en toiture / façade",null,null,"(x/o)",null,null,null,null,null,null,null,null,null,null,null,null,null,null,null,null,null,null,null,null,null,null,null,null,null,null,null,null,null,null,"dubbel 125 ",{"$f":"AK23","v":0},null,10,0]
[null,"Grille pour passage en façade",null,null,null,null,null,null,null,null,null,null,null,null,null,null,null,null,null,null,null,null,null,null,null,null,null,null,null,null,null,null,null,null,null,null,null,null,null,null,null,null,"Muurrooster ",null,{"$f":"IF(E58=\"x\",1,\"0\")","v":"0"}]
[null,"Sortie en toiture toit plat",null,null,null,null,null,null,null,null,null,null,null,null,null,null,null,null,null,null,null,null,null,null,null,null,null,null,null,null,null,null,null,null,null,null,null,null,null,{"$f":"SUM(AN55:AN57)","v":0},"m easyflex",null,"Dakdoorvoer plat dak",null,{"$f":"IF(E59=\"x\",1,\"0\")","v":"0"}]
[null,"Sortie en toiture toit incliné",null,null,null,null,null,null,null,null,null,null,null,null,null,null,null,null,null,null,null,null,null,null,null,null,null,null,null,null,null,null,null,null,null,null,null,null,null,{"$f":"(AN59/15)","v":0},null,null,"dakdoorvoer hellend dak",null,{"$f":"IF(E60=\"x\",1,\"0\")","v":"0"}]
[null,null,null,null,null,null,null,null,null,null,null,null,null,null,null,null,null,null,null,null,null,null,null,null,null,null,null,null,null,null,null,null,null,null,null,null,null,null,null,{"$f":"ROUNDUP(AN60,0)","v":0},"rollen easyflex"]
[null,"Liste de pièces"]
[]
[null,"Nouvelle ref 2024","Ancienne ref",null,"Quantité","Prix unitaire 01/2024","Total"]
[null,null,null,"UNITÉ"]
[null,17062,66060102,"Kit Healthbox 3.0"]
[null,17069,66060114,"Kit Healthbox 3.0 CO2"]
[null,17063,66060103,"Kit Healthbox 3.0 Smartzone"]
[null,9567,66060125,"Module de réglage buanderie / salle de bains sans toilettes"]
[null,9568,66060126,"Module de réglage salle de bains avec toilettes"]
[null,9323,66060127,"Module de réglage toilettes"]
[null,9324,66060128,"Module de réglage cuisine"]
[null,9569,66060129,"Module de réglage chambre à coucher"]
[null,11727,66031676,"Base de la grille Ø125 - 174x174 - non-réglable"]
[null,11726,66031675,"Base de la grille Ø80 - 134x134 - non-réglable"]
[null,17071,66060119,"Print pour collecteur",null,null,null,null,"Quantités minimales sont pré-remplis. Par contre, les collecteurs peuvent aussi être utilisés avec moins de modules de réglage pour obtenir une installation compacte. Quantité max. par Healthbox 3.0: 17071 (66060119) = 2 pièces. 9566 (66060118) = 4 pièces"]
[null,9566,66060118,"Pièce en T pour collecteur"]
[null,11894,"G0932717","Anneau d'évacuation 150-160 noir"]
[null,null,null,"GAINES"]
[null,27590,"G0013117","Raccordement à la grille Ø125"]
[null,28131,"G0013116","Raccordement à la grille Ø80"]
[null,28407,"G0013118","Raccordement double à la grille Ø125 mm"]
[null,28410,"G0013132","Pièce intermédiaire 0,25m ø125"]
[null,28129,"G0013111","Couplage oblong avec des caoutchoucs"]
[null,27592,"G0013122","Couplage avec des caoutchoucs Ø125mm"]
[null,28133,"G0013121","Couplage avec des caoutchoucs Ø80"]
[null,28906,"G0013147","Kit passage de dalle coudé ø125"]
[null,28414,"G0013146","Kit passage de dalle ø80"]
[null,28406,"G0013110","Gaine flexible 140x64 15m"]
[null,28411,"G0013137","Bride de fixation en métal"]
[null,11682,66014133,"Flexible ACOUDEC 25mm ø82 x 0,5m"]
[null,8757,66014134,"Flexible ACOUDEC 25mm ø127 x 0,5m"]
[null,11678,66014110,"Collier de serrage Ø50-90mm"]
[null,11679,66014111,"Collier de serrage Ø60-165mm"]
[null,8755,66014106,"Flexible ISODEC ø152mm x 10m"]
[]
[null,null,null,"SORTIE EN TOITURES/FAÇADE*"]
[null,null,null,"* Proposition générale. Voir fiche technique pour avoir certitude sur modèle exacte selon type de toit"]
[null,12013,76050001,"Grille pour passage en façade noire ø150",null,null,null,null,"Variante blanche: 17120 (76050002)"]
[null,11675,66014096,"Sortie en toiture incliné noire design noir ø150/160",null,null,null,null,"Variante terracota: 8753 (66014097)"]
[null,11693,66014263,"Sortie en toiture noire design XL pour toitures plates Ø160"]
[]
[null,null,null,"PLAQUE DE RECOUVREMENT"]
[null,11722,66031630,"XD25-50 puro  Ø80",null,null,null,null,"Variantes:"]
[null,10937,66031631,"XD75 puro  Ø125",null,null,null,null,"Variantes:"]
[]
[null,"Cette liste des pièces est indicative et ne donne qu'une bonne estimation du nombre de pièces et gaines besoin. C’est possible que des pièces manquent ou soient superflues (selon les besoins de votre projet). Vous deviez encore ajouter des gaines (conduits verticals) , ainsi que d'autre accessoires si nécessaire."]
[]
[]
[null,null,null,"Options (à remplir par utilisateur)"]
[null,28132,"G0013120","Pièce en Y (FR 0,61)",null,null,null,null,"Par pièce en Y, à ajouter 2 x couplage oblong avec des caoutchoucs 18129 (G0013111)"]
[]
[null,11728,66031686,"Base pour grille Ø125 - 174x174 - réglable (RF 0,61)",null,null,null,null,"Supprimer base de la grille non-réglable 11727 (66031676) "]
[null,9299,66031687,"Base pour grille Ø80 - 134x134 - réglable (RF 0,61)",null,null,null,null,"Supprimer base de la grille non-réglable 11726 (66031675)"]
[]
[null,28904,"G0013131","Gaine ronde 3m Ø80 - conduit vertical"]
[null,28903,"G0013130","Gaine ronde Ø125mm 3m - conduit vertical"]
[]
[null,null,null,null,null,null,null,null,"Autre à remplir si désiré"]
[null,null,null,null,null,null,null,null,"Autre à remplir si désiré"]
[null,null,null,null,null,null,null,null,"Autre à remplir si désiré"]
[]
[null,null,null,"TOTAL PRIX RENSON"]
[]
[null,"Vous trouviez notre liste de prix actuel et autre documentation sur notre platforme pour professionels: https://www.renson.eu/fr-be/pour-les-professionnels"]
[]
[]
[null,"Date",null,{"$f":"TODAY()","v":"2024-01-08"},"Offre valable 30 jours"]

{"sheet":"Referenties - Références","index":3,"n_rows":44,"n_cols":4,"rows_kept":44,"cut":false,"hidden":false,"merged":[[5,4,9,4],[10,4,11,4],[36,4,37,4],[40,4,41,4],[26,4,27,4],[28,4,29,4]]}
[]
[null,"REF.","VENTILATIEUNIT","UNITÉ"]
[null,66060102,"Kit Healthbox 3.0","Kit Healthbox 3.0"]
[null,66060114,"Kit Healthbox 3.0 CO2","Kit Healthbox 3.0 CO2"]
[null,66060103,"Kit Healthbox 3.0 Smartzone","Kit Healthbox 3.0 Smartzone"]
[null,66060125,"Regelmodule wasplaats/badkamer zonder toilet","Module de réglage buanderie / salle de bains sans toilettes"]
[null,66060126,"Regelmodule badkamer met toilet","Module de réglage salle de bains avec toilettes"]
[null,66060127,"Regelmodule toilet","Module de réglage toilettes"]
[null,66060128,"Regelmodule keuken","Module de réglage cuisine"]
[null,66060129,"Regelmodule slaapkamer","Module de réglage chambre à coucher"]
[null,66031676,"Niet-regelbare roosterbasis 174 x 174 mm ø125","Base de la grille Ø125 - 174x174 - non-réglable"]
[null,66031675,"Niet-regelbare roosterbasis 134 x 14 mm ø80","Base de la grille Ø80 - 134x134 - non-réglable"]
[null,66060119,"Print voor klepcollector","Print pour collecteur"]
[null,66060118,"T-stuk voor klepcollector","Pièce en T pour collecteur"]
[null,null,"LEIDINGEN","GAINES"]
[null,"G0013117","Ventielaansluiting ø125","Raccordement à la grille Ø125"]
[null,"G0013116","Ventielaansluiting ø80","Raccordement à la grille Ø80"]
[null,"G0013118","Dubbele ventielaansluiting ø125","Raccordement double à la grille Ø125 mm"]
[null,"G0013132","Betondoorvoer 0,25 m ø125 ","Pièce intermédiaire 0,25m ø125"]
[null,"G0013111","Koppelstuk met rubbers, plat ovaal","Couplage oblong avec des caoutchoucs"]
[null,"G0013122","Koppelstuk met rubbers, rond ø125","Couplage avec des caoutchoucs Ø125mm"]
[null,"G0013121","Koppelstuk met rubbers, rond ø80","Couplage avec des caoutchoucs Ø80"]
[null,"G0013147","Kit haakse betondoorvoer ø125","Kit passage de dalle coudé ø125"]
[null,"G0013146","Kit haakse betondoorvoer ø80","Kit passage de dalle ø80"]
[null,"G0013110","Flexibel kanaal 140 x 64 15 m","Flexibel kanaal 140 x 64 15 m"]
[null,"G0013137","Metalen overzetbeugel","Bride de fixation en métal"]
[null,66014133,"Acoudec 25 mm ø82 x 0,5 m","Flexible ACOUDEC 25mm ø82 x 0,5m"]
[null,66014134,"Acoudec 25 mm ø127 x 0,5 m","Flexible ACOUDEC 25mm ø127 x 0,5m"]
[null,66014110,"Klemband Ø50-90mm","Collier de serrage Ø50-90mm"]
[null,66014111,"Klemband Ø60-165mm","Collier de serrage Ø60-165mm"]
[null,66014106,"Flexibel Isodec ø152 x 10 m","Flexible ISODEC ø152mm x 10m"]
[null,null,"DOORVOEREN","SORTIE EN TOITURES / FAÇADE"]
[null,76050001,"Geveldoorvoerrooster zwart ø150","Grille pour passage en façade noire ø150"]
[null,66014096,"Designdakdoorvoer zwart ø150/160","Sortie en toiture incliné noire design noir ø150/160"]
[null,66014263,"Dakdoorvoer XL platte daken 160","Sortie en toiture noire design XL pour toitures plates Ø160"]
[null,null,"ROOSTERS","PLAQUE DE RECOUVREMENT"]
[null,66031630,"XD25-50 puro","XD25-50 puro"]
[null,66031631,"XD75 puro","XD75 puro"]
[null,null,"Opties (zelf in te vullen)","Options (à remplir par utilisateur)"]
[null,"G0013120","Y-stuk plat ovaal (RF 0,61)","Pièce en Y (FR 0,61)"]
[null,66031686,"Regelbare roosterbasis 174 x 174 mm ø125 (RF 0,61)","Base pour grille Ø125 - 174x174 - réglable (RF 0,61)"]
[null,66031687,"Regelbare roosterbasis 134 x 14 mm ø80 (RF 0,61)","Base pour grille Ø80 - 134x134 - réglable (RF 0,61)"]
[null,"G0013131","Stijgleiding 3 m ø80","Gaine ronde 3m Ø80 - conduit vertical"]
[null,"G0013130","Stijgleiding 3 m ø125","Gaine ronde Ø125mm 3m - conduit vertical"]

{"sheet":"Installatie - Installation","index":4,"n_rows":56,"n_cols":3,"rows_kept":56,"cut":false,"hidden":false,"merged":[]}
[]
[]
[]
[]
[]
[]
[]
[]
[]
[]
[]
[]
[]
[]
[]
[]
[]
[]
[]
[]
[]
[]
[]
[]
[]
[]
[]
[]
[]
[]
[]
[]
[]
[]
[]
[]
[]
[]
[]
[]
[]
[]
[]
[]
["Meer info:",null,"Plus d'info:"]
["https://www.renson.eu/nl-be/producten-zoeken/ventilatie/mechanische-ventilatie/units/healthbox-3-0",null,"https://www.renson.eu/fr-be/producten-zoeken/ventilatie/mechanische-ventilatie/units/healthbox-3-0"]
["> downloads -> Handleiding",null,"> downloads -> Instructions"]
["> downloads -> Technische Fiche",null,"> downloads -> Fiche Technique"]
["> downloads -> Brochure B2C",null,"> downloads -> Brochure B2C"]
[]
["https://www.renson.eu/nl-be/voor-professionals/epb-platform",null,"https://www.renson.eu/fr-be/pour-les-professionnels/peb-plateforme"]
["> Mechanische Ventilatie (voor B2B brochure)",null,"> Ventilation Mécanique (pour brochure B2B)"]
["> Waarden EPB (voor brochure en waarden EPB)",null,"> Valeurs PEB (pour brochure & valeurs atour PEB)"]
[]
["https://www.renson.eu/nl-be/voor-professionals/opleidingen",null,"https://www.renson.eu/fr-be/pour-les-professionnels/formations"]
["Voor gratis opleidingen in ons hoofdkantoor",null,"Pour formations gratuit dans notre siège social"]